bitfinex/quotes_BTCUSD_20220211
["timestamp","ask_amount","ask_price","bid_price","bid_amount"]
[1644554043202,0.057897,43193.0,43191.0,0.057897]
[1644554044203,0.00026622,43195.0,43191.0,0.057897]
[1644554044204,0.00064298,43194.0,43191.0,0.057897]
[1644554044451,0.00064298,43194.0,43193.0,0.057887]
[1644554044654,0.00064298,43194.0,43193.0,0.104187]
[1644554044853,0.02186681,43204.0,43194.0,0.9]
[1644554045052,0.02186681,43204.0,43195.0,0.162058]
[1644554045053,0.00026625,43203.0,43195.0,0.162058]
[1644554045251,0.02186681,43204.0,43196.0,0.60412916]
[1644554045454,0.00026625,43203.0,43202.0,0.38137728]
[1644554045654,0.02186681,43204.0,43202.0,0.53555528]
[1644554045853,0.005,43209.0,43203.0,0.50616941]
[1644554046053,0.005,43209.0,43204.0,0.0463]
[1644554046255,0.057877,43208.0,43204.0,0.0463]
[1644554046455,0.027877,43208.0,43204.0,0.0463]
[1644554047158,0.027877,43208.0,43204.0,0.162055]
[1644554047355,0.027877,43208.0,43204.0,0.212055]
[1644554047754,0.027877,43208.0,43204.0,0.23228396]
[1644554048904,0.02852026,43208.0,43204.0,0.23228396]
[1644554049711,0.02852026,43208.0,43204.0,0.2506659]
[1644554049904,0.027877,43208.0,43204.0,0.23043694]
[1644554050306,0.02852026,43208.0,43204.0,0.23043694]
[1644554051110,0.027877,43208.0,43204.0,0.23043694]
[1644554051310,0.02852026,43208.0,43204.0,0.23043694]
[1644554052272,0.027877,43208.0,43204.0,0.23043694]
[1644554052568,0.02852026,43208.0,43204.0,0.25027781]
[1644554052769,0.02852026,43208.0,43204.0,0.23189587]
[1644554053570,0.027877,43208.0,43204.0,0.23189587]
[1644554053772,0.02852026,43208.0,43204.0,0.23189587]
[1644554054572,0.027877,43208.0,43204.0,0.25322581]
[1644554054975,0.02852026,43208.0,43204.0,0.25322581]
[1644554055575,0.02852026,43208.0,43205.0,0.173619]
[1644554055804,0.027877,43208.0,43206.0,0.0463]
[1644554056003,0.027877,43208.0,43206.0,0.104175]
[1644554056207,0.00064326,43208.0,43206.0,0.104175]
[1644554056401,0.00064326,43208.0,43206.0,0.21992]
[1644554056603,0.00064326,43208.0,43207.0,0.42348334]
[1644554056800,0.00064326,43208.0,43207.0,0.61978334]
[1644554057001,0.005,43209.0,43207.0,0.61978334]
[1644554057200,0.005,43209.0,43208.0,0.057875]
[1644554057404,0.005,43209.0,43208.0,0.104175]
[1644554058002,0.062874,43209.0,43208.0,0.104175]
[1644554058606,0.062874,43209.0,43208.0,0.0463]
[1644554058904,0.062874,43209.0,43206.0,0.057888]
[1644554063503,0.062874,43209.0,43206.0,0.104188]
[1644554063805,0.062874,43209.0,43206.0,0.154188]
[1644554064402,0.062874,43209.0,43208.0,0.24892794]
[1644554064601,0.062874,43209.0,43208.0,0.29522794]
[1644554071599,0.062874,43209.0,43208.0,0.0463]
[1644554072002,0.06274226,43209.0,43208.0,0.0463]
[1644554075153,0.06274226,43209.0,43207.0,0.107876]
[1644554075357,0.06274226,43209.0,43207.0,0.057876]
[1644554081005,0.12063164,43209.0,43207.0,0.057876]
[1644554081708,0.06274226,43209.0,43207.0,0.057876]
[1644554087203,0.38950348,43207.0,43206.0,0.05]
[1644554087605,0.38950348,43207.0,43204.0,0.25]
[1644554087803,0.44739748,43207.0,43204.0,0.25]
[1644554088704,0.67832012,43207.0,43204.0,0.25]
[1644554088904,0.67832012,43207.0,43205.0,0.057893]
[1644554089105,0.73621329,43207.0,43205.0,0.057893]
[1644554089753,0.50529065,43207.0,43205.0,0.057893]
[1644554090254,0.07754544,43207.0,43205.0,0.057893]
[1644554092056,0.057894,43207.0,43205.0,0.057893]
[1644554094001,0.057894,43207.0,43205.0,0.07882555]
[1644554094202,0.057877,43208.0,43205.0,0.07882555]
[1644554094602,0.05847684,43208.0,43206.0,0.057877]
[1644554094802,0.05847684,43208.0,43206.0,0.107877]
[1644554095002,0.05847684,43208.0,43206.0,0.40604513]
[1644554095204,0.05847684,43208.0,43207.0,0.0463]
[1644554095402,0.005,43209.0,43207.0,0.0463]
[1644554095403,0.062875,43209.0,43207.0,0.0463]
[1644554095603,0.062875,43209.0,43208.0,0.057875]
[1644554095807,0.06347483,43209.0,43208.0,0.104175]
[1644554096604,0.062875,43209.0,43208.0,0.104175]
[1644554098863,0.057875,43209.0,43208.0,0.104175]
[1644554104303,0.05778208,43209.0,43208.0,0.104175]
[1644554105067,0.005,43209.0,43208.0,0.154175]
[1644554110207,0.005,43209.0,43208.0,0.107875]
[1644554120556,0.005,43209.0,43208.0,0.05]
[1644554120759,0.005,43209.0,43206.0,0.107875]
[1644554120958,0.005,43209.0,43206.0,0.057875]
[1644554121358,0.1207817,43209.0,43206.0,0.057875]
[1644554121556,0.26863207,43208.0,43206.0,0.057875]
[1644554121961,0.323675,43207.0,43204.0,0.2]
[1644554122155,0.26863207,43208.0,43204.0,0.2]
[1644554122360,0.9,43205.0,43190.0,0.59612985]
[1644554122557,0.05,43206.0,43191.0,0.32555864]
[1644554122558,0.27387598,43202.0,43191.0,0.32555864]
[1644554122759,0.29392128,43201.0,43193.0,0.25608692]
[1644554123218,0.29392128,43201.0,43197.0,0.752392]
[1644554123812,0.35182428,43201.0,43197.0,0.752392]
[1644554124012,0.40972685,43201.0,43197.0,0.77266148]
[1644554124213,0.40972685,43201.0,43197.0,0.83056148]
[1644554124815,0.40972685,43201.0,43197.0,0.82266148]
[1644554125217,0.057902,43200.0,43197.0,0.82266148]
[1644554125416,0.057902,43200.0,43197.0,0.88056348]
[1644554125417,0.05790201,43199.0,43197.0,0.88056348]
[1644554125615,0.057902,43200.0,43197.0,0.88056348]
[1644554126315,0.057902,43200.0,43197.0,0.89940108]
[1644554126515,0.057902,43200.0,43197.0,0.860294]
[1644554127461,0.057902,43200.0,43197.0,0.802392]
[1644554128061,0.057902,43200.0,43197.0,0.8230005]
[1644554129563,0.26313758,43199.0,43197.0,0.8809015]
[1644554129865,0.26333464,43199.0,43197.0,0.8809015]
[1644554130062,0.26333464,43199.0,43197.0,0.90093497]
[1644554130262,0.26333464,43199.0,43197.0,0.88032647]
[1644554130708,0.057902,43200.0,43197.0,0.88032647]
[1644554130709,0.05850916,43200.0,43197.0,0.88032647]
[1644554131505,0.057902,43200.0,43197.0,0.88032647]
[1644554132104,0.057902,43200.0,43197.0,0.90108418]
[1644554132305,0.057902,43200.0,43197.0,0.88105071]
[1644554132707,0.057902,43200.0,43197.0,0.83105071]
[1644554132911,0.00061228,43201.0,43198.0,0.39478265]
[1644554133108,0.00061228,43201.0,43199.0,0.104183]
[1644554133307,0.00061228,43201.0,43200.0,0.335796]
[1644554133507,0.00061228,43201.0,43200.0,0.432096]
[1644554133708,0.00061228,43201.0,43200.0,0.532096]
[1644554133908,0.115785,43207.0,43200.0,0.73492206]
[1644554134107,0.39559717,43209.0,43201.0,0.115774]
[1644554134307,0.39559717,43209.0,43202.0,0.162074]
[1644554134308,0.00061227,43203.0,43202.0,0.162074]
[1644554134555,0.00061227,43203.0,43202.0,0.212074]
[1644554134956,0.00033372,43203.0,43202.0,0.50767767]
[1644554135161,0.057886,43208.0,43202.0,0.50767767]
[1644554135357,0.005,43209.0,43202.0,0.50767767]
[1644554135358,0.00061152,43205.0,43204.0,0.173649]
[1644554135556,0.00061152,43205.0,43204.0,0.50528962]
[1644554135759,0.00061152,43205.0,43204.0,0.55528962]
[1644554136357,0.005,43209.0,43204.0,0.55528962]
[1644554136557,0.005,43209.0,43208.0,0.28819209]
[1644554137057,0.005,43209.0,43208.0,0.33819209]
[1644554137458,0.005,43209.0,43208.0,0.107882]
[1644554138508,0.005,43209.0,43208.0,0.37061385]
[1644554142155,0.005,43209.0,43208.0,0.45961571]
[1644554142859,0.005,43209.0,43208.0,0.55961571]
[1644554143556,0.005,43209.0,43208.0,0.47061385]
[1644554145356,0.005,43209.0,43208.0,0.37061385]
[1644554146311,0.005,43209.0,43208.0,0.47061385]
[1644554147009,0.005,43209.0,43208.0,0.77998885]
[1644554147209,0.005,43209.0,43208.0,0.82628885]
[1644554148213,0.005,43209.0,43208.0,0.84467696]
[1644554149565,0.005,43209.0,43208.0,0.43530196]
[1644554150271,0.005,43209.0,43208.0,0.38664754]
[1644554150468,0.00064215,43211.0,43210.0,0.057875]
[1644554150469,0.05851715,43211.0,43210.0,0.057875]
[1644554150666,0.11575,43212.0,43210.0,0.0463]
[1644554151166,0.00064215,43211.0,43210.0,0.0463]
[1644554151568,0.00064215,43211.0,43210.0,0.21992463]
[1644554151966,0.11575,43212.0,43210.0,0.21992463]
[1644554152970,0.11575,43212.0,43208.0,0.07760869]
[1644554152971,0.673675,43211.0,43208.0,0.01973369]
[1644554153220,0.05,43209.0,43208.0,0.01973369]
[1644554153421,0.373675,43209.0,43200.0,0.01839021]
[1644554153614,0.323675,43208.0,43200.0,0.01839021]
[1644554153817,0.91864561,43208.0,43200.0,0.01839021]
[1644554154014,0.323675,43207.0,43200.0,0.09538123]
[1644554154216,0.057894,43206.0,43200.0,0.15327623]
[1644554154415,0.057894,43206.0,43200.0,0.13488602]
[1644554154616,0.05853583,43206.0,43200.0,0.13488602]
[1644554154816,0.05853583,43206.0,43200.0,0.19277635]
[1644554155016,0.05853583,43206.0,43200.0,0.13488135]
[1644554155717,0.00064183,43205.0,43200.0,0.13488135]
[1644554155920,0.057893,43204.0,43201.0,0.057889]
[1644554156117,0.00064183,43205.0,43201.0,0.057889]
[1644554156317,0.31602773,43203.0,43201.0,0.057889]
[1644554156716,0.26602773,43203.0,43201.0,0.057889]
[1644554157558,0.32392073,43203.0,43201.0,0.057889]
[1644554158958,0.37392073,43203.0,43201.0,0.057889]
[1644554161413,0.37392073,43203.0,43201.0,0.14153609]
[1644554161813,0.37392073,43203.0,43201.0,0.057889]
[1644554162112,0.26800986,43202.0,43199.0,0.057896]
[1644554162313,0.32590686,43202.0,43197.0,0.69449]
[1644554163412,0.057902,43201.0,43197.0,0.69449]
[1644554163611,0.165804,43201.0,43197.0,0.69449]
[1644554164212,0.18553769,43201.0,43197.0,0.69449]
[1644554167163,0.20527138,43201.0,43197.0,0.69449]
[1644554167362,0.18553769,43201.0,43197.0,0.69449]
[1644554167966,0.18553769,43201.0,43197.0,0.69471306]
[1644554168407,0.20527138,43201.0,43197.0,0.69471306]
[1644554168607,0.18553769,43201.0,43197.0,0.69471306]
[1644554169610,0.18553769,43201.0,43197.0,0.69449]
[1644554170211,0.20527138,43201.0,43197.0,0.69449]
[1644554170411,0.18553769,43201.0,43197.0,0.69449]
[1644554171012,0.439486,43200.0,43197.0,0.69449]
[1644554171212,0.115811,43200.0,43197.0,0.69449]
[1644554171615,0.229311,43200.0,43197.0,0.69449]
[1644554172259,0.24904469,43200.0,43197.0,0.69449]
[1644554172458,0.13554469,43200.0,43197.0,0.69449]
[1644554173258,0.115811,43200.0,43197.0,0.69449]
[1644554173460,0.1135,43198.0,43197.0,0.69449]
[1644554173659,0.1635,43198.0,43197.0,0.69449]
[1644554174261,0.18323369,43198.0,43197.0,0.69449]
[1644554174460,0.50690869,43198.0,43197.0,0.69449]
[1644554174760,0.18323369,43198.0,43197.0,0.69449]
[1644554176212,0.50690869,43198.0,43197.0,0.69449]
[1644554176408,0.06973369,43198.0,43197.0,0.69449]
[1644554176811,0.01973369,43198.0,43197.0,0.69449]
[1644554177208,0.03946738,43198.0,43197.0,0.69449]
[1644554177409,0.01973369,43198.0,43197.0,0.69449]
[1644554178308,0.03946738,43198.0,43197.0,0.69449]
[1644554178508,0.01973369,43198.0,43197.0,0.69449]
[1644554179959,0.01973369,43198.0,43197.0,0.69438002]
[1644554180358,0.03946738,43198.0,43197.0,0.69438002]
[1644554180559,0.01973369,43198.0,43197.0,0.69438002]
[1644554182359,0.03946738,43198.0,43197.0,0.69438002]
[1644554182559,0.01973369,43198.0,43197.0,0.69438002]
[1644554184310,0.03946738,43198.0,43197.0,0.69438002]
[1644554184510,0.01973369,43198.0,43197.0,0.69438002]
[1644554186311,0.03946738,43198.0,43197.0,0.69438002]
[1644554186510,0.01973369,43198.0,43197.0,0.69438002]
[1644554189160,0.03946738,43198.0,43197.0,0.69460308]
[1644554189360,0.01973369,43198.0,43197.0,0.69460308]
[1644554190363,0.03946738,43198.0,43197.0,0.69460308]
[1644554190564,0.01973369,43198.0,43197.0,0.69460308]
[1644554190812,0.01973369,43198.0,43197.0,0.69438002]
[1644554192311,0.03946738,43198.0,43197.0,0.69460308]
[1644554192515,0.01973369,43198.0,43197.0,0.69460308]
[1644554193713,0.01973369,43198.0,43197.0,0.69438002]
[1644554194314,0.03946738,43198.0,43197.0,0.69438002]
[1644554194560,0.13323369,43198.0,43197.0,0.69438002]
[1644554195162,0.45690869,43198.0,43197.0,0.69438002]
[1644554195361,0.13323369,43198.0,43197.0,0.69438002]
[1644554195760,0.45690869,43198.0,43197.0,0.69438002]
[1644554195961,0.13323369,43198.0,43197.0,0.69438002]
[1644554196361,0.47664238,43198.0,43197.0,0.69438002]
[1644554196560,0.45690869,43198.0,43197.0,0.69438002]
[1644554198412,0.47664238,43198.0,43197.0,0.69438002]
[1644554200512,0.49637607,43198.0,43197.0,0.69438002]
[1644554200713,0.45690869,43198.0,43197.0,0.69438002]
[1644554202369,0.47664238,43198.0,43197.0,0.69438002]
[1644554202567,0.45690869,43198.0,43197.0,0.69438002]
[1644554203371,0.73165993,43198.0,43197.0,0.69438002]
[1644554203569,0.73165993,43198.0,43197.0,0.34690802]
[1644554203768,0.73165993,43198.0,43197.0,0.34190802]
[1644554204369,0.28385785,43196.0,43194.0,0.00022306]
[1644554204570,0.32090604,43194.0,43193.0,0.0005833]
[1644554204770,0.58789139,43194.0,43192.0,0.057908]
[1644554205169,0.05,43193.0,43192.0,0.057908]
[1644554205573,0.88056019,43194.0,43192.0,0.057908]
[1644554206015,0.88056019,43194.0,43190.0,0.05791]
[1644554206213,0.88056019,43194.0,43191.0,0.00058333]
[1644554206413,0.78679388,43194.0,43191.0,0.00058333]
[1644554206616,0.78679388,43194.0,43191.0,0.00080639]
[1644554207212,0.78679388,43194.0,43189.0,0.00022306]
[1644554207415,0.78679388,43194.0,43190.0,0.00058333]
[1644554207614,0.1135,43192.0,43190.0,0.00058333]
[1644554208015,0.1635,43192.0,43190.0,0.00058333]
[1644554208413,0.18323369,43192.0,43189.0,0.00022306]
[1644554208613,0.18323369,43192.0,43189.0,0.00058335]
[1644554208914,0.24114069,43192.0,43189.0,0.00080641]
[1644554209561,0.1135,43190.0,43189.0,0.00022306]
[1644554209760,0.12764069,43192.0,43188.0,0.17452686]
[1644554209962,0.12764069,43192.0,43189.0,0.00022306]
[1644554210161,0.12764069,43192.0,43188.0,0.17452686]
[1644554210361,0.12764069,43192.0,43190.0,0.06366744]
[1644554210764,0.057907,43192.0,43190.0,0.00022306]
[1644554210965,0.05,43190.0,43189.0,0.05849535]
[1644554211162,0.057907,43192.0,43189.0,0.05849535]
[1644554211363,0.05,43190.0,43189.0,0.05849535]
[1644554212064,0.05,43190.0,43189.0,0.057912]
[1644554212463,0.06973369,43190.0,43189.0,0.057912]
[1644554213712,0.06973369,43190.0,43189.0,0.05813506]
[1644554214510,0.08946738,43190.0,43189.0,0.05813506]
[1644554214709,0.06973369,43190.0,43189.0,0.05813506]
[1644554217362,0.08946738,43190.0,43189.0,0.05813506]
[1644554217563,0.06973369,43190.0,43189.0,0.05813506]
[1644554217764,0.01973369,43190.0,43189.0,0.05813506]
[1644554218063,0.06973369,43190.0,43189.0,0.05813506]
[1644554218466,0.08946738,43190.0,43189.0,0.05813506]
[1644554218665,0.01973369,43190.0,43189.0,0.05813506]
[1644554220065,0.06973369,43190.0,43189.0,0.05813506]
[1644554220464,0.08946738,43190.0,43189.0,0.05813506]
[1644554220714,0.06973369,43190.0,43189.0,0.05813506]
[1644554221711,0.01973369,43190.0,43189.0,0.05813506]
[1644554222111,0.01973369,43190.0,43189.0,0.10443506]
[1644554222612,0.03946738,43190.0,43189.0,0.10443506]
[1644554222813,0.01973369,43190.0,43189.0,0.10443506]
[1644554224469,0.03946738,43190.0,43189.0,0.10443506]
[1644554224969,0.057907,43192.0,43189.0,0.10443506]
[1644554225169,0.057907,43192.0,43189.0,0.22022684]
[1644554225370,0.057907,43192.0,43189.0,0.16233184]
[1644554226671,0.07764069,43192.0,43189.0,0.16233184]
[1644554228517,0.09737438,43192.0,43189.0,0.16233184]
[1644554228723,0.12764069,43192.0,43189.0,0.16233184]
[1644554228918,0.07764069,43192.0,43189.0,0.16233184]
[1644554229118,0.05,43190.0,43189.0,0.16233184]
[1644554229919,0.05,43190.0,43189.0,0.10443506]
[1644554230619,0.06973369,43190.0,43189.0,0.10443506]
[1644554232266,0.05122797,43190.0,43189.0,0.10443506]
[1644554232566,0.07096166,43190.0,43189.0,0.10443506]
[1644554232766,0.05122797,43190.0,43189.0,0.10443506]
[1644554233771,0.01973369,43190.0,43189.0,0.10443506]
[1644554236519,0.03946738,43190.0,43189.0,0.10443506]
[1644554237326,0.03946738,43190.0,43189.0,0.30185768]
[1644554237826,0.03946738,43190.0,43189.0,0.40185768]
[1644554238621,0.05920107,43190.0,43189.0,0.40185768]
[1644554238823,0.01973369,43190.0,43189.0,0.40185768]
[1644554239863,0.28167613,43202.0,43193.0,0.057897]
[1644554240063,0.38957213,43202.0,43193.0,0.057897]
[1644554240262,0.38957213,43202.0,43193.0,0.05812006]
[1644554240864,0.057897,43200.0,43193.0,0.05812006]
[1644554241065,0.057897,43200.0,43194.0,0.05789571]
[1644554241265,0.057897,43200.0,43196.0,0.057895]
[1644554242566,0.057897,43200.0,43197.0,0.057895]
[1644554243430,0.057897,43200.0,43197.0,0.39829056]
[1644554243627,0.07005112,43205.0,43197.0,0.39829056]
[1644554243628,0.07005112,43205.0,43199.0,0.057879]
[1644554243828,0.07005112,43205.0,43200.0,0.40037795]
[1644554243829,0.00061312,43205.0,43200.0,0.40037795]
[1644554244029,0.00061312,43205.0,43200.0,0.34250141]
[1644554244226,0.00061312,43205.0,43200.0,0.19611836]
[1644554244428,0.0215874,43209.0,43207.0,0.35454113]
[1644554244828,0.323675,43209.0,43208.0,0.057884]
[1644554245029,0.58828418,43209.0,43208.0,0.057884]
[1644554245830,0.32249718,43209.0,43205.0,0.0463]
[1644554246030,0.05789,43208.0,43205.0,0.0463]
[1644554246330,0.323675,43206.0,43205.0,0.0463]
[1644554246732,0.373675,43206.0,43205.0,0.0463]
[1644554247364,0.65126921,43206.0,43205.0,0.0463]
[1644554247565,0.65126921,43206.0,43199.0,0.1599]
[1644554247764,0.115804,43205.0,43199.0,0.0463]
[1644554248063,0.88287521,43206.0,43199.0,0.0463]
[1644554248064,0.05790031,43203.0,43199.0,0.0463]
[1644554248465,0.05046744,43205.0,43199.0,0.0463]
[1644554248767,0.00046744,43205.0,43199.0,0.0463]
[1644554249170,0.32759421,43206.0,43199.0,0.0413]
[1644554249367,0.00046744,43205.0,43199.0,0.0413]
[1644554249566,0.115796,43202.0,43199.0,0.099198]
[1644554249767,0.165796,43202.0,43199.0,0.099198]
[1644554250170,0.165796,43202.0,43199.0,0.057898]
[1644554251012,0.057898,43201.0,43199.0,0.057898]
[1644554253215,0.16579,43202.0,43199.0,0.057898]
[1644554253615,0.107897,43202.0,43199.0,0.057898]
[1644554253816,0.05,43201.0,43199.0,0.057898]
[1644554254876,0.107895,43201.0,43199.0,0.057898]
[1644554261964,0.102895,43201.0,43199.0,0.057898]
[1644554263666,0.102895,43201.0,43197.0,0.43523249]
[1644554263667,0.0579,43200.0,43197.0,0.43523249]
[1644554263868,0.115799,43200.0,43197.0,0.43523249]
[1644554269878,0.2187,43201.0,43197.0,0.43523249]
[1644554270575,0.115799,43200.0,43197.0,0.43523249]
[1644554273724,0.115799,43200.0,43197.0,0.48523249]
[1644554276628,0.115799,43200.0,43197.0,0.2079]
[1644554276826,0.115799,43200.0,43197.0,0.1079]
[1644554277673,0.115799,43200.0,43197.0,0.45712823]
[1644554277868,0.115799,43200.0,43197.0,0.55712823]
[1644554281414,0.115799,43200.0,43197.0,0.61502359]
[1644554281613,0.115799,43200.0,43197.0,0.55712823]
[1644554282615,0.115799,43200.0,43197.0,0.1579]
[1644554282822,0.38356269,43200.0,43197.0,0.0579]
[1644554283016,0.115799,43200.0,43197.0,0.0579]
[1644554283216,0.323675,43199.0,43197.0,0.0579]
[1644554283415,0.115799,43200.0,43193.0,0.00058233]
[1644554283617,0.057904,43198.0,43194.0,0.057904]
[1644554283816,0.38430137,43196.0,43194.0,0.057904]
[1644554284869,0.44220637,43196.0,43194.0,0.057904]
[1644554285270,0.057905,43196.0,43194.0,0.057904]
[1644554286173,0.29245458,43195.0,43194.0,0.057904]
[1644554286573,0.34245458,43195.0,43193.0,0.05848829]
[1644554286773,0.057907,43194.0,43193.0,0.05848829]
[1644554287573,0.057907,43194.0,43193.0,0.057907]
[1644554291115,0.107907,43195.0,43193.0,0.057907]
[1644554291116,0.057907,43195.0,43193.0,0.057907]
[1644554292571,0.057907,43195.0,43193.0,0.1158048]
[1644554292771,0.057907,43195.0,43194.0,0.05]
[1644554292971,0.00064169,43205.0,43196.0,0.11576848]
[1644554293174,0.00064169,43205.0,43204.0,0.08523176]
[1644554293373,0.00064169,43205.0,43204.0,0.36179636]
[1644554293772,0.0002661,43206.0,43204.0,0.14311781]
[1644554293972,0.057886,43206.0,43204.0,0.14311781]
[1644554294173,0.0581521,43206.0,43204.0,0.14311781]
[1644554294672,0.1081521,43206.0,43204.0,0.14311781]
[1644554294872,0.115772,43205.0,43204.0,0.44967602]
[1644554295273,0.165772,43205.0,43204.0,0.20100381]
[1644554295476,0.165772,43205.0,43204.0,0.14311776]
[1644554297730,0.165772,43205.0,43204.0,0.057886]
[1644554299662,0.05,43204.0,43203.0,0.057895]
[1644554302970,0.05,43204.0,43201.0,0.057894]
[1644554303212,0.057894,43203.0,43201.0,0.057894]
[1644554311218,0.057894,43203.0,43201.0,0.107894]
[1644554312418,0.057894,43203.0,43201.0,0.154194]
[1644554314980,0.057894,43203.0,43201.0,0.107894]
[1644554319016,0.057894,43203.0,43201.0,0.057894]
[1644554319215,0.323675,43202.0,43200.0,0.057898]
[1644554319418,0.323675,43202.0,43195.0,0.1157]
[1644554319419,0.057901,43202.0,43195.0,0.1157]
[1644554319614,0.057901,43202.0,43193.0,0.00048309]
[1644554319615,0.3,43201.0,43193.0,0.00048309]
[1644554319915,0.465803,43201.0,43193.0,0.00048309]
[1644554320117,0.057901,43200.0,43192.0,0.25427189]
[1644554320315,0.36276344,43199.0,43192.0,0.31827286]
[1644554320518,0.1079,43198.0,43193.0,0.00048309]
[1644554321114,0.1079,43198.0,43195.0,0.057901]
[1644554321716,0.1658,43198.0,43195.0,0.057901]
[1644554321965,0.057902,43197.0,43195.0,0.057901]
[1644554322366,0.05,43198.0,43195.0,0.057901]
[1644554322967,0.115804,43197.0,43195.0,0.057901]
[1644554323368,0.165804,43197.0,43195.0,0.057901]
[1644554335714,0.115804,43197.0,43195.0,0.057901]
[1644554336520,0.057902,43197.0,43195.0,0.057901]
[1644554337765,0.107902,43197.0,43195.0,0.057901]
[1644554340467,0.165799,43197.0,43195.0,0.057901]
[1644554342429,0.165799,43197.0,43192.0,0.0002152]
[1644554342624,0.32178506,43196.0,43192.0,0.057908]
[1644554342823,0.32178506,43196.0,43192.0,0.0581232]
[1644554342824,0.37969306,43196.0,43192.0,0.0581232]
[1644554343624,0.37969306,43196.0,43192.0,0.057908]
[1644554343924,0.115816,43196.0,43192.0,0.057908]
[1644554344125,0.323675,43194.0,43188.0,0.1160302]
[1644554344324,0.323675,43194.0,43188.0,0.115815]
[1644554344325,0.173727,43194.0,43188.0,0.115815]
[1644554344582,0.223727,43194.0,43188.0,0.1160302]
[1644554344777,0.223727,43194.0,43188.0,0.115815]
[1644554344979,0.33941522,43189.0,43188.0,0.115815]
[1644554345579,0.38941522,43189.0,43188.0,0.1160302]
[1644554348420,0.05,43189.0,43188.0,0.1160302]
[1644554350321,0.107908,43190.0,43188.0,0.1160302]
[1644554350520,0.107908,43190.0,43188.0,0.115815]
[1644554351970,0.107908,43190.0,43188.0,0.1160302]
[1644554352367,0.05,43190.0,43188.0,0.1160302]
[1644554353168,0.107909,43190.0,43188.0,0.1160302]
[1644554353368,0.10781168,43190.0,43188.0,0.1160302]
[1644554353869,0.16571968,43190.0,43188.0,0.1160302]
[1644554355272,0.16571968,43190.0,43188.0,0.115815]
[1644554355471,0.16571968,43190.0,43188.0,0.1160302]
[1644554356313,0.11571968,43190.0,43188.0,0.1160302]
[1644554356714,0.057908,43190.0,43188.0,0.1160302]
[1644554357819,0.107908,43190.0,43188.0,0.1160302]
[1644554363715,0.16582,43190.0,43188.0,0.1160302]
[1644554364116,0.107908,43190.0,43188.0,0.1160302]
[1644554365016,0.107908,43190.0,43188.0,0.115815]
[1644554365216,0.107908,43190.0,43188.0,0.1160302]
[1644554365819,0.107908,43190.0,43176.0,0.31355142]
[1644554365820,0.323675,43189.0,43176.0,0.31355142]
[1644554366021,0.107908,43190.0,43181.0,0.00021202]
[1644554366022,0.4131342,43184.0,43181.0,0.00021202]
[1644554366220,0.4131342,43184.0,43180.0,0.00232193]
[1644554366221,0.323675,43182.0,43180.0,0.00232193]
[1644554366418,0.323675,43182.0,43174.0,0.00021202]
[1644554366618,0.24071182,43180.0,43173.0,0.30131202]
[1644554366820,0.41122938,43181.0,43173.0,0.00131202]
[1644554367065,0.115858,43179.0,43173.0,0.10131202]
[1644554367363,0.115858,43179.0,43174.0,0.35421899]
[1644554367364,0.165858,43179.0,43174.0,0.35421899]
[1644554367663,0.165858,43179.0,43174.0,0.35443101]
[1644554367864,0.165858,43179.0,43174.0,0.10021202]
[1644554368066,0.057927,43178.0,43174.0,0.10021202]
[1644554368363,0.115856,43178.0,43174.0,0.10078051]
[1644554368563,0.165856,43178.0,43174.0,0.15871051]
[1644554368763,0.165856,43178.0,43174.0,0.05871051]
[1644554369262,0.22378601,43178.0,43174.0,0.05871051]
[1644554369463,0.22378601,43178.0,43174.0,0.05814202]
[1644554369663,0.22378601,43178.0,43174.0,0.05871052]
[1644554370263,0.165856,43178.0,43174.0,0.05871052]
[1644554370721,0.165856,43178.0,43174.0,0.05814202]
[1644554370913,0.165856,43178.0,43174.0,0.05871052]
[1644554371113,0.165856,43178.0,43174.0,0.00078052]
[1644554371813,0.165856,43178.0,43174.0,0.00021202]
[1644554372013,0.165856,43178.0,43174.0,0.0005685]
[1644554372214,0.165856,43178.0,43174.0,0.00078052]
[1644554372914,0.05793232,43177.0,43174.0,0.00078052]
[1644554373114,0.11586432,43177.0,43174.0,0.00078052]
[1644554373318,0.057932,43176.0,43174.0,0.00078052]
[1644554373516,0.107932,43176.0,43174.0,0.00078052]
[1644554374565,0.16586562,43176.0,43174.0,0.00078052]
[1644554377668,0.323675,43175.0,43174.0,0.00078052]
[1644554377868,0.65670864,43175.0,43171.0,0.00018052]
[1644554378068,0.71465564,43175.0,43173.0,0.00021207]
[1644554378320,0.71465564,43175.0,43165.0,0.0022]
[1644554378321,0.05794503,43172.0,43165.0,0.0022]
[1644554378522,0.38162003,43172.0,43171.0,0.00021207]
[1644554378718,0.20433212,43170.0,43165.0,0.0022]
[1644554378924,0.31724421,43168.0,43165.0,0.0022]
[1644554379119,0.64091921,43168.0,43166.0,0.00131208]
[1644554379319,0.36724421,43168.0,43166.0,0.00131208]
[1644554382474,0.17383707,43169.0,43166.0,0.11718008]
[1644554382475,0.01361307,43169.0,43166.0,0.11718008]
[1644554382771,0.01361307,43169.0,43167.0,0.94832892]
[1644554382970,0.115891,43170.0,43169.0,0.01857459]
[1644554383169,0.115891,43170.0,43169.0,0.13079385]
[1644554383369,0.42,43175.0,43169.0,1.53694455]
[1644554383575,0.42,43175.0,43172.0,0.20727917]
[1644554383576,0.115843,43173.0,43172.0,0.20727917]
[1644554383771,0.115843,43173.0,43172.0,0.20749125]
[1644554383969,0.115843,43173.0,43172.0,1.61342987]
[1644554384168,0.115843,43173.0,43172.0,1.4061507]
[1644554384371,0.165843,43173.0,43172.0,0.10021208]
[1644554385370,0.165843,43173.0,43172.0,0.00021208]
[1644554385572,0.165843,43173.0,43171.0,0.05813508]
[1644554390465,0.165843,43173.0,43172.0,0.0463]
[1644554390664,0.165843,43173.0,43172.0,0.04651208]
[1644554391865,0.115843,43173.0,43172.0,0.04651208]
[1644554402518,0.115843,43173.0,43172.0,0.34348193]
[1644554402722,0.165843,43173.0,43172.0,0.44348193]
[1644554403519,0.16575264,43173.0,43172.0,0.44348193]
[1644554403719,0.16575264,43173.0,43172.0,0.39718193]
[1644554404119,0.16575264,43173.0,43172.0,0.29718193]
[1644554404319,0.16575264,43173.0,43172.0,0.39718193]
[1644554404567,0.16575264,43173.0,43172.0,0.10021208]
[1644554405371,0.16575264,43173.0,43172.0,0.00021208]